fUSD/lending_fUSD_20240627
["ID","MTS","AMOUNT","RATE_DAILY","PERIOD"]
[330492947,1719507038272,-499.99,0.00013128,2]
[330492948,1719507038281,-2373.57182662,0.00013128,2]
[330492949,1719507038291,-250.0,0.00013136,2]
[330492950,1719507038300,-464.36,0.00013169,2]
[330492952,1719507038310,-250.0,0.00013195,2]
[330492954,1719507038324,-686.95,0.00013224,2]
[330492956,1719507038334,-155.07,0.00013229,2]
[330492958,1719507038343,-871.73,0.00013229,2]
[330492960,1719507038353,-5266.96,0.00013237,2]
[330492962,1719507038362,-307.17655212,0.00013452,2]
[330492964,1719507038371,-307.17655212,0.00013452,2]
[330492966,1719507038380,-155.07,0.00013458,2]
[330492968,1719507038389,-943.80885522,0.00013472,2]
[330492970,1719507038401,-301.74096619,0.00013472,2]
[330492971,1719507038411,-169.85,0.00013505,2]
[330492975,1719507038420,-684.44148417,0.00013543,2]
[330492989,1719507038770,-442.19,0.00013572,2]
[330492990,1719507038779,-155.07,0.00013688,2]
[330492991,1719507038789,-250.35916501,0.00013849,2]
[330492992,1719507038799,-155.07,0.00013918,2]
[330492993,1719507038809,-155.0,0.00013989,2]
[330492994,1719507038819,-2928.10982847,0.00013999,2]
[330492995,1719507038828,-180.42,0.00014119,2]
[330492996,1719507038838,-794.79990291,0.00014265,2]
[330492997,1719507038886,-861.20009709,0.00014265,2]
[330492998,1719507038895,-172.41,0.00014483,2]
[330492999,1719507038904,-3379.33891475,0.000145,2]
[330493000,1719507038913,-300.0,0.000147,5]
[330493001,1719507038923,-600.0,0.000148,5]
[330493002,1719507038932,-871.73,0.00014883,2]
[330493003,1719507038942,-14471.6741566,0.000149,2]
[330493004,1719507038951,-900.0,0.000149,5]
[330493005,1719507038961,-150.63061928,0.000149,2]
[330493006,1719507038972,-1333.88175348,0.000149,2]
[330493007,1719507038981,-318.7029894,0.000149,2]
[330493008,1719507038990,-220.18,0.00014904,2]
[330493009,1719507039000,-170.13616463,0.00014966,2]
[330493010,1719507039009,-155.24207177,0.00014966,2]
[330493011,1719507039019,-2795.2276952,0.00014989,2]
[330493012,1719507039028,-209.48641975,0.00014999,2]
[330493013,1719507039039,-5914.1484835,0.00014999,2]
[330493014,1719507039049,-155.10759368,0.00014999,2]
[330493015,1719507039060,-217331.10898611,0.00015,2]
[330493016,1719507039077,-304.6,0.00015,2]
[330493017,1719507039088,-302.0,0.00015,2]
[330493018,1719507039104,-4900.0,0.00015,2]
[330493019,1719507040441,-127014.85000703,0.00015,2]
[330493020,1719507040450,-24630.6982386,0.00015,2]
[330493021,1719507040460,-5000.0,0.00015,2]
[330493022,1719507040470,-224489.93756041,0.00015,2]
[330493023,1719507040495,-518.06499977,0.00015,2]
[330493024,1719507040546,-12373.2,0.00015,2]
[330493121,1719507043392,-619.99752,0.00015,2]
[330493122,1719507043535,-11851.94698878,0.00015,2]
[330493123,1719507043547,-163175.51758461,0.00015,2]
[330493125,1719507046774,-1185.57,0.00015,2]
[330493126,1719507046787,-80403.21021507,0.00015,2]
[330493127,1719507046841,-810.184375,0.00015,2]
[330493128,1719507047062,-469.30795553,0.00015,2]
[330493129,1719507047074,-306.32756142,0.00015,2]
[330493145,1719507192911,200.0,0.00025077,120]
[330493146,1719507195461,1000.0,0.00025999,120]
[330493152,1719507894419,173.54,0.00011465,2]
[330493154,1719507960314,411.27901864,0.00011465,2]
[330493155,1719507972809,180.42,0.00011414,2]
[330493157,1719508019408,4455.21626006,0.00011199,2]
[330493326,1719508169359,-455.65,0.00012283,2]
[330493327,1719508169382,-625.33216649,0.00013472,2]
[330493328,1719508169406,-1251.85328804,0.00013516,2]
[330493329,1719508169429,-50000.0,0.00013759,2]
[330493330,1719508169453,-155.0,0.00013759,2]
[330493331,1719508169474,-318.23554472,0.00013759,2]
[330493332,1719508169495,-202.05047868,0.00013759,2]
[330493333,1719508169516,-180.88908444,0.00013759,2]
[330493334,1719508169538,-1505.06661741,0.00013799,2]
[330493335,1719508169558,-150.0,0.00013834,2]
[330493336,1719508169578,-300.0,0.00013834,2]
[330493337,1719508169599,-101848.92282022,0.00013835,2]
[330493355,1719508232442,-625.06783351,0.00013574,2]
[330493356,1719508232452,-250.0,0.00013891,2]
[330493357,1719508232464,-160.33,0.00013949,2]
[330493358,1719508232473,-146.08917106,0.00014149,2]
[330493359,1719508232533,-7028.89931554,0.00014149,2]
[330493360,1719508232546,-709.0315134,0.00014149,2]
[330493361,1719508232557,-200.0,0.00014207,2]
[330493362,1719508232567,-215.4,0.0001421,2]
[330493363,1719508232576,-173.54,0.00014331,2]
[330493364,1719508232587,-184.64,0.00014454,2]
[330493365,1719508232597,-150.0,0.00014454,2]
[330493366,1719508232607,-455.65,0.00014547,2]
[330493367,1719508232616,-695.57550293,0.00014713,2]
[330493368,1719508232708,-176.15449707,0.00014713,2]
[330493369,1719508232723,-365.9,0.00014732,2]
[330493370,1719508232733,-217.60439156,0.00014752,2]
[330493371,1719508232745,-1287.46222582,0.00014752,2]
[330493372,1719508232756,-695.35122,0.0001485,2]
[330493373,1719508232765,-183.81698287,0.00014899,2]
[330493374,1719508232776,-300.0,0.00014899,2]
[330493375,1719508232785,-486.3734,0.000149,2]
[330493376,1719508232795,-1134.52989236,0.000149,2]
[330493377,1719508232808,-267.23393513,0.000149,2]
[330493378,1719508232864,-1728.0087192,0.000149,2]
[330493381,1719508238310,-4852.6012,0.000149,2]
[330493382,1719508238322,-10315.26684458,0.000149,2]
[330493383,1719508238402,-3186.29266696,0.000149,2]
[330493384,1719508238415,-300.11965555,0.000149,2]
[330493385,1719508238428,-1522.57839701,0.000149,2]
[330493386,1719508238439,-4488.32092168,0.000149,2]
[330493387,1719508238452,-319.64025731,0.000149,2]
[330493388,1719508238467,-539.1790548,0.000149,2]
[330493389,1719508238499,-14182.0,0.000149,2]
[330493390,1719508238512,-20618.92525542,0.000149,2]
[330493391,1719508238523,-13354.05994213,0.000149,2]
[330493392,1719508238533,-164.98878452,0.000149,2]
[330493393,1719508238543,-366.62136337,0.000149,2]
[330493394,1719508238552,-220.18,0.00014904,3]
[330493395,1719508238562,-215.4,0.00014921,2]
[330493396,1719508238572,-170.75,0.00014976,2]
[330493397,1719508238582,-499.99,0.00014987,2]
[330493398,1719508238591,-393.37866053,0.00014988,2]
[330493399,1719508238601,-4793.7349358,0.00014989,2]
[330493400,1719508238611,-499.21993501,0.00014989,2]
[330493401,1719508238621,-1784.2195561,0.00014999,2]
[330493402,1719508238631,-35160.52949455,0.00015,2]
[330493403,1719508238644,-454.67894768,0.00015,2]
[330493404,1719508238658,-29271.20723251,0.00015,2]
[330493405,1719508238670,-44781.71431273,0.00015,2]
[330493410,1719508238708,-140283.59318083,0.00015,2]
[330493412,1719508238724,-800.0,0.00015,2]
[330493413,1719508238736,-3360.28349679,0.00015,2]
[330493414,1719508238748,-519.7933878,0.00015,2]
[330493415,1719508238761,-442.25,0.00015,2]
[330493417,1719508238773,-901.37718854,0.00015,2]
[330493419,1719508238784,-94178.37830526,0.00015,2]
[330493421,1719508238798,-3653.30460498,0.00015,2]
[330493423,1719508238841,-2301.28986009,0.00015,2]
[330493424,1719508238853,-4468.57904239,0.00015,2]
[330493425,1719508238866,-1644.2883817,0.00015,2]
[330493426,1719508238878,-1240.2756,0.00015,2]
[330493427,1719508238890,-869.19947107,0.00015,2]
[330493430,1719508240581,-3137.59487043,0.00015,2]
[330493431,1719508240593,-3602.21195516,0.00015,2]
[330493432,1719508240605,-4128.63986883,0.00015,2]
[330493433,1719508240618,-3933.36463944,0.00015,2]
[330493434,1719508240630,-4432.26839026,0.00015,2]
[330493435,1719508240642,-6757.96750055,0.00015,2]
[330493436,1719508240655,-38995.22785513,0.00015,2]
[330493437,1719508240668,-1617.592005,0.00015,2]
[330493438,1719508240680,-1363.68834929,0.00015,2]
[330493439,1719508240691,-2023.404,0.00015,2]
[330493440,1719508240703,-778.64096614,0.00015,2]
[330493441,1719508240718,-30701.89974367,0.00015,2]
[330493442,1719508240730,-17177.91746889,0.00015,2]
[330493443,1719508240868,-210939.86709404,0.00015,2]
[330493444,1719508240880,-362.572002,0.00015,2]
[330493445,1719508240892,-1641.30252,0.00015,2]
[330493446,1719508240904,-10733.8579377,0.00015,2]
[330493447,1719508240916,-3250.0,0.00015,2]
[330493448,1719508240927,-24104.6103854,0.00015,2]
[330493449,1719508240941,-1079.800005,0.00015,2]
[330493450,1719508240955,-1062.73661376,0.00015,2]
[330493451,1719508240967,-45081.48907596,0.00015,2]
[330493452,1719508240980,-4457.36528087,0.00015,2]
[330493453,1719508240990,-499.0,0.00015,2]
[330493454,1719508241000,-200.0,0.00015093,2]
[330493455,1719508241009,-150.0,0.00015173,2]
[330493456,1719508241019,-150.63061928,0.00015235,2]
[330493457,1719508241028,-210.01901731,0.00015287,2]
[330493458,1719508241038,-155.0,0.00015287,2]
[330493459,1719508241048,-155.0,0.00015287,2]
[330493460,1719508241059,-206.07168017,0.00015287,2]
[330493462,1719508241070,-310.0,0.00015335,2]
[330493463,1719508241079,-989.03912973,0.00015399,2]
[330493464,1719508241089,-155.04064792,0.000155,2]
[330493465,1719508241099,-150.0,0.00015619,2]
[330493466,1719508241109,-215.4,0.00015631,2]
[330493467,1719508241118,-172.41,0.00015743,2]
[330493468,1719508241129,-1505.06661738,0.00015769,2]
[330493469,1719508241139,-13354.0599421,0.00015788,2]
[330493470,1719508241148,-167.47,0.0001589,4]
[330493471,1719508241158,-202.785526,0.00016,2]
[330493473,1719508241168,-160.33,0.00016274,2]
[330493474,1719508241178,-420.0,0.00016308,2]
[330493475,1719508241282,-215.4,0.00016342,2]
[330493476,1719508241292,-1000.0,0.00016438,2]
[330493477,1719508241302,-871.73,0.00016552,2]
[330493478,1719508241311,-13354.0599421,0.00016676,2]
[330493479,1719508241321,-1649.4604684,0.00016769,2]
[330493480,1719508241337,-352.61406467,0.00016769,2]
[330493481,1719508241348,-3017.256,0.00016769,2]
[330493482,1719508241359,-3380.424834,0.00016769,2]
[330493483,1719508241370,-843.15773648,0.00016769,2]
[330493484,1719508241381,-647.94517802,0.00016769,2]
[330493485,1719508241393,-728.05842579,0.00016769,2]
[330493486,1719508241404,-861.78488582,0.00016769,2]
[330493487,1719508241416,-322.85018007,0.00016769,2]
[330493488,1719508241427,-4162.14659872,0.00016769,2]
[330493489,1719508241438,-510.98056953,0.00016769,2]
[330493490,1719508241502,-1937.26644223,0.00016769,2]
[330493491,1719508241533,-30239.48252856,0.00016769,2]
[330493492,1719508241546,-503.4787228,0.00016769,2]
[330493493,1719508241557,-3364.15,0.00016769,2]
[330493494,1719508241569,-4426.60988034,0.00016769,2]
[330493495,1719508241580,-3512.54571817,0.00016769,2]
[330493496,1719508241591,-14365.96528816,0.00016769,2]
[330493497,1719508241603,-6034.69799759,0.00016769,2]
[330493498,1719508241612,-450.07456747,0.00016769,2]
[330493499,1719508241621,-1505.06661738,0.00016787,2]
[330493500,1719508241630,-455.65,0.00016811,2]
[330493501,1719508241640,-184.64,0.00016863,2]
[330493502,1719508241649,-150.0,0.00016989,2]
[330493503,1719508241661,-2492.27739478,0.00017,2]
[330493504,1719508241670,-215.4,0.00017052,2]
[330493505,1719508241679,-150.63061928,0.00017149,2]
[330493506,1719508241688,-173.54,0.00017197,2]
[330493507,1719508241698,-695.35122,0.0001735,2]
[330493508,1719508241707,-172.76,0.00017476,2]
[330493509,1719508241721,-3975.4942,0.00017562,2]
[330493510,1719508241730,-4330.53383025,0.00017563,2]
[330493511,1719508242563,-4536.55407685,0.00017563,2]
[330493512,1719508242576,-540.18000005,0.00017563,2]
[330493566,1719508243596,-1324.29662438,0.00014207,2]
[330493567,1719508243608,-630.18302999,0.00014207,2]
[330493568,1719508243631,-5231.21225213,0.00014207,2]
[330493569,1719508243642,-717.75861333,0.00014207,2]
[330493570,1719508243656,-985.15592018,0.00014207,2]
[330493571,1719508243773,-276.224985,0.00014207,2]
[330493572,1719508243785,-9752.14954014,0.00014207,2]
[330493573,1719508243798,-508.28687562,0.00014207,2]
[330493574,1719508243871,-18720.3891559,0.00014207,2]
[330493575,1719508243882,-11854.34300333,0.00014207,2]
[330493576,1719508243892,-3946.79203495,0.00017563,2]
[330493577,1719508243902,-226.97665617,0.00017703,2]
[330493578,1719508243911,-226.97665617,0.00017703,2]
[330493579,1719508243921,-1505.06661738,0.00017804,2]
[330493580,1719508243930,-1000.0,0.00017808,2]
[330493581,1719508243939,-587.0,0.0001785,2]
[330493582,1719508243949,-360.01112184,0.00018,2]
[330493583,1719508243958,-200.0,0.00018,2]
[330493584,1719508243968,-871.73,0.00018392,2]
[330493585,1719508243979,-13354.0599421,0.00018451,2]
[330493586,1719508243989,-160.33,0.00018599,2]
[330493587,1719508243999,-10000.0,0.00018808,2]
[330493588,1719508244008,-1505.06661738,0.00018821,2]
[330493589,1719508244018,-296.56181456,0.00018899,2]
[330493592,1719508244166,-1000.0,0.00018999,2]
[330493594,1719508244176,-2000.0,0.00019,3]
[330493596,1719508244187,-1000.0,0.00019,3]
[330493598,1719508244196,-1000.0,0.00019,3]
[330493600,1719508244207,-1000.0,0.00019,3]
[330493602,1719508244217,-150.63061928,0.00019063,2]
[330493604,1719508244228,-455.65,0.00019075,2]
[330493606,1719508244238,-456.0,0.000191,4]
[330493607,1719508244247,-2027.0,0.000191,4]
[330493608,1719508244257,-1002.02277634,0.00019178,2]
[330493609,1719508244267,-500.0,0.00019178,2]
[330493610,1719508244277,-184.64,0.00019272,2]
[330493611,1719508244287,-13354.0599421,0.00019339,2]
[330493613,1719508244297,-155.0,0.0001935,2]
[330493615,1719508244307,-657.99122263,0.00019389,2]
[330493616,1719508244317,-523.7195419,0.00019389,2]
[330493617,1719508244326,-399.88147407,0.00019389,2]
[330493618,1719508244336,-520.06850352,0.00019451,2]
[330493619,1719508244346,-823.0,0.00019538,2]
[330493620,1719508244357,-500.0,0.00019564,2]
[330493621,1719508244366,-392.24,0.00019564,2]
[330493622,1719508244376,-500.0,0.00019564,2]
[330493623,1719508244386,-529.88213633,0.00019565,2]
[330493624,1719508244396,-500.0,0.00019701,2]
[330493625,1719508244405,-500.0,0.00019701,2]
[330493626,1719508244415,-1505.06661738,0.00019838,2]
[330493627,1719508244425,-695.35122,0.0001985,2]
[330493628,1719508244435,-176.13900663,0.000199,2]
[330493629,1719508244446,-2383.80639571,0.000199,2]
[330493630,1719508244456,-500.0,0.00019975,2]
[330493631,1719508244465,-589.0,0.00019997,2]
[330493632,1719508244475,-1000.0,0.0002,4]
[330493633,1719508244484,-1000.0,0.0002,3]
[330493634,1719508244494,-1000.0,0.0002,4]
[330493635,1719508244504,-500.0,0.0002,2]
[330493636,1719508244513,-500.0,0.0002,2]
[330493637,1719508244524,-285.51696622,0.0002,2]
[330493638,1719508244534,-365.53771181,0.0002,7]
[330493639,1719508244544,-200.0,0.0002,2]
[330493640,1719508244553,-191.0,0.0002,2]
[330493641,1719508244563,-168.16606269,0.0002,2]
[330493642,1719508244572,-242.66287014,0.0002,2]
[330493643,1719508244582,-6263.07146111,0.0002,2]
[330493644,1719508244595,-13398.76935309,0.0002,2]
[330493645,1719508244604,-1371.399,0.00020051,2]
[330493646,1719508244613,-4122.41963998,0.00020051,2]
[330493648,1719508246534,-3210.35,0.00018808,2]
[330493649,1719508246544,-5369.37315569,0.00020051,2]
[330493650,1719508246908,-348.14380331,0.00020051,2]
[330493651,1719508247022,-776.6731308,0.00020051,2]
[330493653,1719508247053,-9772.72227022,0.00020051,2]
[330493654,1719508247063,-5167.0,0.00020051,2]
[330493655,1719508247073,-291.0,0.00020051,2]
[330493656,1719508247083,-2383.80639566,0.00020172,2]
[330493657,1719508247093,-13354.0599421,0.00020227,2]
[330493658,1719508247102,-871.73,0.00020231,2]
[330493659,1719508247112,-500.0,0.00020386,2]
[330493660,1719508247122,-172.76,0.00020389,2]
[330493661,1719508247132,-498.53842952,0.00020444,2]
[330493662,1719508247144,-346.44906839,0.00020444,2]
[330493684,1719508395061,1000.0,0.00025999,120]
[330493701,1719509332157,2376.06489013,0.00011199,2]
[330493778,1719509431780,-897.20141263,0.00013128,2]
[330493779,1719509431792,-1476.37041399,0.00013128,2]
[330493780,1719509431802,-206.07168017,0.00013472,2]
[330493781,1719509431812,-1252.18284416,0.00013472,2]
[330493782,1719509431823,-1000.0,0.00013735,2]
[330493783,1719509431832,-204.034,0.00013799,2]
[330493784,1719509431843,-650.69302056,0.00013849,2]
[330493785,1719509431853,-322.71533688,0.00013899,2]
[330493786,1719509431863,-155.0,0.00013899,2]
[330493787,1719509431873,-300.0,0.00013988,2]
[330493788,1719509431883,-4529.41462121,0.000148,2]
[330493789,1719509431895,-2667.56887879,0.000148,2]
[330493790,1719509431904,-212.1406,0.000148,2]
[330493791,1719509431914,-150.0,0.00014899,2]
[330493792,1719509431923,-498.39011787,0.000149,2]
[330493793,1719509431935,-764.60626949,0.000149,2]
[330493794,1719509432045,-615.77052,0.000149,2]
[330493795,1719509432058,-4408.77539264,0.000149,2]
[330493796,1719509432071,-500.0,0.000149,2]
[330493797,1719509432080,-62429.7435,0.000149,2]
[330493798,1719509432090,-416.13,0.00016557,2]
[330493799,1719509432099,-150.99,0.00017534,2]
[330493800,1719509432112,-250.0,0.00017838,2]
[330493801,1719509432122,-3106.52214219,0.00017889,2]
[330493802,1719509432131,-304.91,0.00017931,2]
[330493803,1719509432141,-172.76,0.00017981,2]
[330493804,1719509432152,-250.0,0.0001799,2]
[330493805,1719509432162,-8406.85,0.00017998,2]
[330493806,1719509432172,-2089.66685103,0.00018,3]
[330493807,1719509432182,-593.29470807,0.00018372,2]
[330493808,1719509432195,-1000.0,0.00018472,2]
[330493809,1719509432204,-177.51,0.000186,2]
[330493810,1719509432213,-170.75,0.00018741,2]
[330493811,1719509432223,-690.00328514,0.00018759,2]
[330493812,1719509432232,-164.34,0.00018792,2]
[330493813,1719509432241,-416.13,0.0001882,2]
[330493814,1719509432251,-625.33216649,0.00018835,2]
[330493815,1719509432260,-2492.27739478,0.00018835,2]
[330493816,1719509432270,-593.29470806,0.00018874,2]
[330493817,1719509432279,-430.72398408,0.00018899,2]
[330493818,1719509432288,-206.63483124,0.00018899,2]
[330493819,1719509432298,-182.2394226,0.00018899,2]
[330493820,1719509432308,-226.97665617,0.00018919,2]
[330493822,1719509432318,-155.14087225,0.00018999,2]
[330493824,1719509432327,-176.42,0.00019043,2]
[330493826,1719509432337,-2004.97925289,0.00019069,2]
[330493827,1719509432346,-2239.0,0.000191,4]
[330493828,1719509432356,-504.0,0.000191,4]
[330493829,1719509432365,-250.0,0.00019178,2]
[330493830,1719509432375,-657.99122263,0.00019229,2]
[330493831,1719509432385,-523.44090366,0.00019299,2]
[330493832,1719509432396,-593.29470806,0.00019376,2]
[330493833,1719509432406,-517.9671284,0.00019399,2]
[330493834,1719509432415,-151.0,0.00019416,2]
[330493835,1719509432425,-307.18748065,0.00019548,2]
[330493836,1719509432434,-500.0,0.00019564,2]
[330493837,1719509432444,-208.93102838,0.00019725,2]
[330493838,1719509432454,-593.29470806,0.00019878,2]
[330493839,1719509432463,-3732.42,0.00019997,2]
[330493840,1719509432472,-589.74225262,0.00019997,2]
[330493841,1719509432482,-1000.0,0.00019999,2]
[330493842,1719509432492,-151.0,0.00020011,2]
[330493843,1719509432501,-150.0,0.00020071,2]
[330493844,1719509432511,-418.64,0.0002011,2]
[330493845,1719509432521,-853.32,0.0002011,2]
[330493846,1719509432532,-418.64,0.0002011,2]
[330493847,1719509432541,-853.32,0.0002011,2]
[330493848,1719509432550,-853.32,0.0002011,2]
[330493849,1719509432560,-418.64,0.0002011,2]
[330493850,1719509432570,-418.64,0.0002011,2]
[330493851,1719509432589,-853.32,0.0002011,2]
[330493852,1719509432612,-853.32,0.0002011,2]
[330493853,1719509432635,-418.64,0.0002011,2]
[330493854,1719509432657,-493.04,0.0002011,2]
[330493855,1719509432678,-928.19,0.0002011,2]
[330493856,1719509432701,-1000.0,0.0002011,2]
[330493857,1719509432723,-1000.0,0.0002011,2]
[330493858,1719509432746,-1000.0,0.0002011,2]
[330493859,1719509432768,-1000.0,0.0002011,2]
[330493860,1719509432788,-500.0,0.00020249,2]
[330493861,1719509432808,-500.0,0.0002028,2]
[330493862,1719509432818,-200.0,0.0002028,2]
[330493863,1719509432828,-1000.0,0.0002028,2]
[330493864,1719509432837,-500.0,0.0002028,2]
[330493865,1719509432846,-500.0,0.0002028,2]
[330493866,1719509432855,-200.0,0.0002028,2]
[330493867,1719509432864,-1559.971896,0.000203,2]
[330493868,1719509432874,-593.29470806,0.0002038,2]
[330493869,1719509432884,-191.0,0.000204,2]
[330493870,1719509432893,-150.0,0.000204,2]
[330493871,1719509432903,-1357.5258712,0.00020437,2]
[330493872,1719509432914,-9483.9202713,0.00020437,2]
[330493873,1719509432938,-4755.051882,0.00020437,2]
[330493874,1719509432961,-3476.9710588,0.00020437,2]
[330493875,1719509432982,-39800.8904057,0.00020437,2]
[330493876,1719509433005,-726.29213102,0.00020443,2]
[330493877,1719509433027,-150.01,0.00020443,2]
[330493878,1719509433049,-347.67561,0.00020444,2]
[330493879,1719509433071,-681.059551,0.00020451,2]
[330493880,1719509433094,-354.51,0.00020521,2]
[330493881,1719509433116,-150.0,0.00020521,2]
[330493882,1719509433136,-423.92,0.00020521,2]
[330493883,1719509433159,-164.7,0.00020521,2]
[330493884,1719509433176,-150.0,0.00020521,2]
[330493885,1719509433186,-527.96,0.00020521,2]
[330493886,1719509433195,-150.0,0.00020521,2]
[330493887,1719509433205,-300.0,0.00020521,2]
[330493888,1719509433215,-423.92,0.00020521,2]
[330493889,1719509433225,-150.0,0.00020521,2]
[330493890,1719509433234,-527.96,0.00020521,2]
[330493891,1719509433244,-164.7,0.00020521,2]
[330493892,1719509433253,-150.0,0.00020521,2]
[330493893,1719509433263,-354.51,0.00020521,2]
[330493894,1719509433273,-150.0,0.00020521,2]
[330493895,1719509433282,-527.96,0.00020521,2]
[330493896,1719509433292,-423.92,0.00020521,2]
[330493897,1719509433302,-150.0,0.00020521,2]
[330493898,1719509433312,-164.7,0.00020521,2]
[330493899,1719509433322,-150.0,0.00020521,2]
[330493900,1719509433331,-354.51,0.00020521,2]
[330493901,1719509433341,-150.0,0.00020521,2]
[330493902,1719509433351,-423.92,0.00020521,2]
[330493903,1719509433361,-527.96,0.00020521,2]
[330493904,1719509433371,-150.0,0.00020521,2]
[330493905,1719509433381,-164.7,0.00020521,2]
[330493906,1719509433391,-150.0,0.00020521,2]
[330493907,1719509433400,-354.51,0.00020521,2]
[330493908,1719509433410,-150.0,0.00020521,2]
[330493909,1719509433419,-354.51,0.00020521,2]
[330493910,1719509433429,-422.02,0.00020521,2]
[330493911,1719509433439,-164.2,0.00020521,2]
[330493912,1719509433450,-525.66,0.00020521,2]
[330493913,1719509433459,-707.08,0.00020521,2]
[330493914,1719509433469,-159.50287503,0.00020564,2]
[330493915,1719509433479,-151.0,0.00020607,2]
[330493916,1719509433488,-183.81698288,0.00020612,2]
[330493917,1719509433498,-350.0,0.00020619,2]
[330493918,1719509433507,-1139.0121,0.00020667,2]
[330493919,1719509433518,-299.4225,0.000207,2]
[330493920,1719509433527,-18597.095,0.000207,2]
[330493921,1719509433536,-617.0,0.00020711,2]
[330493922,1719509433545,-812.0,0.00020711,2]
[330493923,1719509433554,-446.0,0.00020711,2]
[330493924,1719509433564,-1303.0,0.00020711,2]
[330493925,1719509433574,-2409.0,0.00020711,2]
[330493926,1719509433583,-1981.0,0.00020711,2]
[330493927,1719509433593,-3197.0,0.00020711,2]
[330493928,1719509433603,-547.0,0.00020711,2]
[330493929,1719509433613,-359.0,0.00020711,2]
[330493930,1719509433622,-1830.0,0.00020711,2]
[330493931,1719509433632,-1654.0,0.00020711,2]
[330493932,1719509433642,-226.73,0.00020767,2]
[330493933,1719509433651,-150.0,0.00020767,2]
[330493934,1719509433661,-1000.0,0.00020781,2]
[330493935,1719509433670,-46309.15947753,0.000208,3]
[330493936,1719509433680,-17389.0745115,0.000208,3]
[330493937,1719509433689,-593.29470806,0.00020882,2]
[330493938,1719509433699,-17389.0745115,0.0002089,3]
[330493939,1719509433709,-150.45,0.000209,2]
[330493940,1719509433718,-1000.0,0.000209,2]
[330493941,1719509433727,-1000.0,0.000209,2]
[330493942,1719509433737,-1000.0,0.000209,2]
[330493943,1719509433746,-1000.0,0.000209,2]
[330493944,1719509433756,-1000.0,0.000209,2]
[330493945,1719509433766,-1000.0,0.000209,2]
[330493946,1719509433874,-1000.0,0.000209,2]
[330493947,1719509433884,-1000.0,0.000209,2]
[330493948,1719509433893,-1000.0,0.000209,2]
[330493949,1719509433903,-1000.0,0.000209,2]
[330493950,1719509433913,-1000.0,0.000209,2]
[330493951,1719509433923,-1000.0,0.000209,2]
[330493952,1719509433932,-453.06590916,0.000209,2]
[330493953,1719509433946,-359.63841064,0.000209,2]
[330493954,1719509433958,-187.2956802,0.000209,2]
[330493955,1719509433968,-1000.0,0.000209,2]
[330493956,1719509433978,-1000.0,0.000209,2]
[330493957,1719509433987,-1000.0,0.000209,2]
[330493958,1719509433996,-1000.0,0.000209,2]
[330493959,1719509434006,-1000.0,0.000209,2]
[330493960,1719509434015,-1000.0,0.000209,2]
[330493961,1719509434025,-1000.0,0.000209,2]
[330493962,1719509434035,-1000.0,0.000209,2]
[330493963,1719509434045,-1000.0,0.000209,2]
[330493964,1719509434055,-1000.0,0.000209,2]
[330493965,1719509434064,-1000.0,0.000209,2]
[330493966,1719509434075,-1000.0,0.000209,2]
[330493967,1719509434085,-1000.0,0.000209,2]
[330493968,1719509434095,-1000.0,0.000209,2]
[330493969,1719509434105,-1000.0,0.000209,2]
[330493970,1719509434120,-1000.0,0.000209,2]
[330493971,1719509434130,-1000.0,0.000209,2]
[330493972,1719509434140,-1000.0,0.000209,2]
[330493973,1719509434151,-1000.0,0.000209,2]